bitfinex/quotes_ETHUSD_20260312
["timestamp","ask_amount","ask_price","bid_price","bid_amount"]
[1773358261108,0.49563176,2081.7,2081.1,0.001]
[1773358262250,0.49563176,2081.5,2081.1,0.001]
[1773358264338,1.69674639,2081.4,2081.1,0.001]
[1773358266839,0.49563176,2081.3,2081.0,0.001]
[1773358267218,0.49563176,2081.3,2080.5,0.1650535]
[1773358267444,0.49563176,2081.1,2080.6,0.48467572]
[1773358268357,0.49563176,2081.1,2080.5,0.1650535]
[1773358268522,1.2013455,2081.0,2080.6,0.001]
[1773358268951,1.69697726,2081.0,2080.6,0.001]
[1773358269351,0.49563176,2080.9,2080.5,0.1650535]
[1773358269517,0.49563176,2080.9,2080.6,0.001]
[1773358270344,1.2013455,2081.0,2080.7,0.48467572]
[1773358270562,1.2013455,2081.0,2080.7,0.48367572]
[1773358270759,1.69686181,2081.2,2080.7,0.48367572]
[1773358270971,1.20123005,2081.2,2080.8,0.001]
[1773358271279,1.20123005,2081.2,2080.9,0.001]
[1773358272353,1.69686181,2081.2,2080.9,0.001]
[1773358272555,0.49563176,2081.1,2080.9,0.001]
[1773358272756,1.69697726,2081.0,2080.8,0.001]
[1773358273866,1.2013455,2081.0,2080.8,0.002]
[1773358274037,1.20133396,2081.1,2080.9,0.001]
[1773358274636,0.49563176,2081.0,2080.8,0.001]
[1773358275545,0.49563176,2081.0,2080.8,0.002]
[1773358276561,0.49563176,2081.0,2080.8,0.001]
[1773358276758,1.69703499,2080.9,2080.8,0.001]
[1773358278269,1.69703499,2080.9,2080.5,0.1660535]
[1773358278444,1.69703499,2080.9,2080.6,0.001]
[1773358278639,1.20123005,2081.2,2080.6,0.48367572]
[1773358278945,1.20123005,2081.2,2080.7,1.68519443]
[1773358279163,1.69683673,2081.3,2080.8,0.48367572]
[1773358279343,1.20120497,2081.3,2080.8,0.48467572]
[1773358279742,1.20120497,2081.3,2080.9,0.001]
[1773358280042,1.69683673,2081.3,2080.9,0.001]
[1773358280460,1.69683673,2081.3,2081.0,0.001]
[1773358280461,0.46293738,2081.2,2081.0,0.001]
[1773358280748,1.20128778,2081.1,2080.5,3.58185276]
[1773358281272,1.20128778,2081.1,2080.5,1.82885276]
[1773358281675,1.20117234,2081.3,2080.6,0.46216639]
[1773358281967,1.20117234,2081.3,2080.8,0.46116639]
[1773358283266,1.20117234,2081.3,2080.9,0.46216639]
[1773358283670,1.20117234,2081.3,2081.0,0.001]
[1773358284565,1.20116083,2081.4,2081.0,0.001]
[1773358284962,0.002,2081.5,2081.1,0.46216639]
[1773358285143,0.002,2081.5,2081.1,0.46116639]
[1773358285343,0.002,2081.5,2081.1,1.66244094]
[1773358285848,0.002,2081.5,2081.1,0.46116639]
[1773358286442,0.001,2081.5,2081.2,0.46116639]
[1773358286646,0.001,2081.5,2081.0,1.20233763]
[1773358286647,0.001,2081.5,2081.0,0.46216639]
[1773358286905,0.002,2081.4,2081.0,0.001]
[1773358287360,1.20311463,2081.4,2081.0,0.001]
[1773358289749,1.66605201,2081.4,2081.0,0.001]
[1773358290682,0.46293738,2081.3,2081.0,0.001]
[1773358291769,1.20123005,2081.2,2081.0,0.001]
[1773358292083,1.66416743,2081.2,2081.0,0.001]
[1773358292757,1.66412439,2081.3,2081.0,0.001]
[1773358293485,0.46293738,2081.2,2081.0,0.001]
[1773358293977,1.20128778,2081.1,2081.0,0.001]
[1773358298564,1.66421153,2081.2,2081.0,0.001]
[1773358299165,0.002,2081.1,2081.0,0.001]
[1773358309570,0.002,2081.1,2081.0,0.47372994]
[1773358309777,1.20117623,2081.3,2081.1,0.47272994]
[1773358310792,4.8066231,2081.4,2081.1,0.47272994]
[1773358311173,5.3066231,2081.4,2081.0,0.001]
[1773358311507,0.002,2081.3,2081.2,0.001]
[1773358320423,1.20317234,2081.3,2081.2,0.001]
[1773358324328,4.58444096,2081.3,2081.2,0.001]
[1773358324629,0.5,2081.2,2081.0,0.001]
[1773358325334,0.002,2081.1,2081.0,0.001]
[1773358328336,0.002,2081.3,2081.0,0.001]
[1773358328542,1.20300888,2081.6,2081.0,0.001]
[1773358328838,0.002,2081.6,2081.0,0.001]
[1773358329216,0.5,2081.5,2081.0,0.001]
[1773358329415,0.503,2081.5,2081.0,0.001]
[1773358329614,1.52634955,2081.5,2081.0,0.001]
[1773358329912,0.503,2081.4,2081.0,0.001]
[1773358331238,1.20117234,2081.3,2081.0,0.001]
[1773358331535,0.003,2081.4,2081.0,0.04905382]
[1773358331742,1.20303377,2081.6,2081.1,1.738]
[1773358331920,1.20600634,2081.6,2081.1,1.738]
[1773358332117,1.52934955,2081.5,2081.0,0.001]
[1773358332322,0.503,2081.4,2081.0,0.001]
[1773358332537,0.003,2081.5,2081.0,0.001]
[1773358332737,0.003,2081.4,2081.0,0.001]
[1773358332910,0.503,2081.4,2081.0,0.001]
[1773358333106,0.003,2081.4,2081.0,0.001]
[1773358333639,0.503,2081.3,2081.0,1.739]
[1773358333822,0.5,2081.4,2081.0,0.001]
[1773358334017,0.503,2081.4,2081.0,0.001]
[1773358334338,0.503,2081.3,2081.0,0.001]
[1773358334512,0.5,2081.3,2081.0,0.001]
[1773358334713,0.503,2081.2,2081.0,0.001]
[1773358335624,1.70427246,2081.2,2081.0,0.001]
[1773358336415,0.003,2081.2,2081.0,0.001]
[1773358338121,0.5,2081.5,2081.0,0.001]
[1773358338356,0.003,2081.3,2081.0,0.001]
[1773358338723,0.5,2081.5,2081.2,0.001]
[1773358338932,0.002,2081.1,2081.0,0.001]
[1773358339236,0.502,2081.3,2081.0,0.001]
[1773358339458,0.005,2081.3,2081.0,0.001]
[1773358339950,0.002,2081.3,2081.0,1.737]
[1773358340621,0.002,2081.7,2081.0,2.76334955]
[1773358340843,0.002,2082.0,2081.2,1.02634955]
[1773358341148,0.005,2082.0,2081.2,1.02634955]
[1773358341843,0.005,2082.0,2081.3,1.20117234]
[1773358342046,0.002,2082.0,2081.3,1.20117234]
[1773358342344,0.005,2082.0,2081.4,1.02634955]
[1773358343818,0.005,2082.0,2081.5,1.20105693]
[1773358344223,0.005,2082.0,2081.6,1.735]
[1773358346020,0.005,2082.0,2081.7,1.20094153]
[1773358346446,0.002,2082.0,2081.7,1.20094153]
[1773358346621,0.002,2082.2,2081.7,1.20094153]
[1773358346819,0.002,2082.4,2081.8,1.02634955]
[1773358347013,0.002,2082.4,2082.0,1.02634955]
[1773358347435,0.002,2082.7,2082.0,1.02634955]
[1773358347639,0.002,2082.7,2082.1,2.44497601]
[1773358347826,2.69167351,2083.1,2082.2,1.02634955]
[1773358348026,2.69167351,2083.1,2082.4,1.02634955]
[1773358348027,1.49149776,2083.1,2082.4,1.02634955]
[1773358348215,1.49149776,2083.1,2082.5,1.20048019]
[1773358348216,0.99149776,2083.1,2082.5,1.20048019]
[1773358348423,0.502,2083.3,2082.5,1.20048019]
[1773358348752,0.502,2083.3,2082.6,1.735]
[1773358349357,0.002,2083.3,2082.6,1.735]
[1773358350149,0.002,2083.3,2082.6,2.76134955]
[1773358350351,0.002,2083.3,2082.7,1.20036491]
[1773358350530,0.502,2083.3,2082.8,1.735]
[1773358350730,0.502,2083.3,2082.9,1.735]
[1773358350937,0.002,2083.1,2082.9,1.735]
[1773358352334,0.002,2083.1,2083.0,1.20019203]
[1773358353363,0.002,2083.3,2083.0,1.20019203]
[1773358353976,0.002,2083.3,2081.2,0.001]
[1773358353977,0.5,2082.8,2081.2,0.001]
[1773358354131,0.5,2081.5,2081.2,0.001]
[1773358354326,1.20111463,2081.4,2081.2,0.001]
[1773358354541,1.20111463,2081.4,2081.2,1.726]
[1773358354747,1.7010975,2081.5,2081.2,1.726]
[1773358355163,1.02634955,2081.4,2081.0,1.20234188]
[1773358355348,0.5,2081.4,2081.0,0.001]
[1773358355547,0.5,2081.2,2080.8,0.001]
[1773358355732,0.5,2081.2,2080.8,1.20244968]
[1773358357129,0.5,2081.2,2080.8,0.001]
[1773358357352,0.5,2081.2,2080.9,1.728]
[1773358357734,1.70123259,2081.2,2080.9,1.728]
[1773358358459,0.5,2081.2,2080.9,1.728]
[1773358359264,0.5,2081.2,2080.9,1.729]
[1773358362064,1.7012364,2081.2,2080.8,0.001]
[1773358362363,0.5,2081.1,2080.9,1.73]
[1773358363749,0.5,2081.1,2080.9,1.731]
[1773358364748,0.5,2081.1,2080.9,0.001]
[1773358364948,0.5,2081.1,2081.0,1.731]
[1773358365668,0.5,2081.1,2080.9,0.001]
[1773358365857,0.5,2081.1,2081.0,1.731]
[1773358368355,4.80401102,2081.6,2081.0,1.732]
[1773358368356,0.5,2081.6,2081.0,1.732]
[1773358368558,0.5,2081.3,2081.0,1.732]
[1773358368761,0.5,2081.3,2080.9,0.001]
[1773358368961,0.5,2081.1,2080.9,1.733]
[1773358369150,0.5,2081.1,2080.9,0.001]
[1773358369346,0.5,2081.1,2080.9,1.733]
[1773358370844,0.5,2081.1,2080.9,0.001]
[1773358371154,0.5,2081.1,2081.0,1.732]
[1773358376062,0.5,2081.1,2081.0,3.84]
[1773358376269,0.5,2081.1,2080.9,1.732]
[1773358376661,1.70128896,2081.1,2080.9,1.732]
[1773358377075,0.5,2081.1,2081.0,0.001]
[1773358377379,0.502,2081.1,2081.0,0.001]
[1773358378878,1.70328778,2081.1,2081.0,0.001]
[1773358381770,0.502,2081.1,2081.0,0.001]
[1773358382484,1.70328778,2081.1,2081.0,0.001]
[1773358383280,0.4995,2081.0,2080.9,0.001]
[1773358383659,0.002,2081.1,2080.9,0.001]
[1773358384066,1.20328873,2081.1,2080.9,0.001]
[1773358384256,0.5015,2081.1,2080.9,0.001]
[1773358386782,1.2013455,2081.0,2080.9,0.001]
[1773358386952,5.3067297,2081.1,2080.9,0.001]
[1773358386953,1.70283254,2081.1,2080.9,0.001]
[1773358387158,1.70283254,2081.1,2080.7,1.731]
[1773358387867,1.70283254,2081.1,2080.7,2.93251655]
[1773358388066,0.5015,2081.1,2080.7,2.93251655]
[1773358389366,1.70280654,2081.1,2080.7,2.93251655]
[1773358389562,1.70281666,2081.1,2080.7,2.93251655]
[1773358389770,1.70281666,2081.1,2080.7,1.731]
[1773358389985,0.002,2080.9,2080.7,1.731]
[1773358391382,0.002,2080.9,2080.7,0.001]
[1773358391560,0.002,2080.9,2080.7,1.731]
[1773358393784,0.002,2080.9,2080.7,0.001]
[1773358394089,0.002,2080.9,2080.7,1.731]
[1773358397783,0.002,2080.9,2080.7,0.001]
[1773358397977,0.002,2080.9,2080.7,1.731]
[1773358399094,0.002,2080.9,2080.8,1.73]
[1773358400378,0.5,2080.8,2080.6,1.731]
[1773358401022,0.5,2080.8,2080.7,1.73]
[1773358401292,0.5,2080.8,2080.6,0.001]
[1773358401487,0.5,2080.8,2080.7,1.73]
[1773358401682,2.73026887,2080.9,2080.7,1.73]
[1773358401985,0.5,2080.8,2080.7,1.73]
[1773358402593,0.5,2080.8,2080.6,0.001]
[1773358402798,0.5,2080.8,2080.6,1.731]
[1773358405409,1.028826,2080.9,2080.6,2.93254134]
[1773358405588,0.002,2080.9,2080.6,2.93254134]
[1773358406601,0.002,2081.1,2080.6,2.93254134]
[1773358406772,0.002,2081.1,2080.7,1.731]
[1773358407488,0.002,2081.1,2080.7,1.20146192]
[1773358407690,0.502,2081.1,2080.7,1.20146192]
[1773358408003,1.526826,2081.0,2080.8,1.731]
[1773358408485,0.5,2081.0,2080.8,1.731]
[1773358409673,0.5,2081.0,2080.8,2.93245684]
[1773358410176,0.5,2081.0,2080.8,1.731]
[1773358410376,0.5,2081.0,2080.7,1.20146711]
[1773358410676,0.5,2081.0,2080.8,1.731]
[1773358411683,0.5,2081.0,2080.8,2.93245934]
[1773358412506,0.5,2081.0,2080.8,1.731]
[1773358412702,0.5,2081.0,2080.8,2.93244597]
[1773358413378,0.002,2081.1,2080.8,2.93244597]
[1773358413774,0.502,2081.1,2080.8,1.732]
[1773358414199,0.502,2081.1,2080.9,0.001]
[1773358414605,0.002,2081.0,2080.9,0.001]
[1773358418619,0.002,2081.0,2080.9,1.734]
[1773358422087,0.5,2080.9,2080.6,0.001]
[1773358422305,0.5,2080.9,2079.8,0.065536]
[1773358422306,0.5,2080.9,2080.0,1.026826]
[1773358422617,0.502,2081.0,2080.1,2.54542539]
[1773358422788,0.5,2080.9,2080.1,2.71147889]
[1773358423312,0.5,2080.7,2080.2,0.1660535]
[1773358423539,0.5,2080.7,2080.2,1.9000535]
[1773358424509,0.5,2080.6,2080.2,3.10182976]
[1773358426807,0.5,2080.8,2080.3,0.1660535]
[1773358427005,0.5,2080.8,2080.4,0.001]
[1773358427325,0.502,2080.8,2080.4,0.001]
[1773358427512,0.502,2080.8,2080.5,0.1660535]
[1773358429025,0.502,2080.8,2080.5,1.3676617]
[1773358430297,0.502,2080.8,2080.5,1.36768246]
[1773358432019,0.502,2080.8,2080.5,1.20162896]
[1773358432441,0.502,2080.8,2080.4,2.93763611]
[1773358432644,0.502,2080.8,2080.5,0.1660535]
[1773358433727,0.502,2080.8,2080.5,1.36766676]
[1773358434139,0.49905909,2080.8,2080.5,1.36766676]
[1773358435124,0.49905909,2080.8,2080.5,5.20766676]
[1773358437245,0.49905909,2080.8,2080.6,0.1660535]
[1773358437947,0.49905909,2080.8,2080.6,1.36762919]
[1773358438952,0.002,2081.0,2080.6,1.36762919]
[1773358439114,0.50105909,2081.0,2080.7,0.45472082]
[1773358439536,0.50105909,2081.0,2080.6,1.20157569]
[1773358439736,0.50105909,2081.0,2080.6,1.36762919]
[1773358440244,0.50105909,2081.0,2080.6,1.36862919]
[1773358440421,0.49905909,2080.9,2080.6,1.36862919]
[1773358440622,0.002,2080.8,2080.6,1.36862919]
[1773358441134,0.002,2080.8,2080.6,1.82335001]
[1773358444249,0.002,2080.8,2080.7,1.738]
[1773358444625,0.002,2080.8,2080.7,1.9040535]
[1773358444826,0.40983088,2080.9,2080.7,1.738]
[1773358445052,0.002,2081.0,2080.8,0.45472082]
[1773358445360,0.002,2081.0,2080.9,0.45472082]
[1773358446153,0.002,2081.0,2080.9,1.739]
[1773358448758,2.2301239,2081.3,2080.9,2.19372082]
[1773358448965,2.2301239,2081.3,2080.8,1.2014162]
[1773358448966,2.2301239,2081.3,2081.0,0.61677432]
[1773358449262,0.49905909,2081.2,2080.9,1.9020535]
[1773358450265,1.70029527,2081.2,2080.9,1.9020535]
[1773358450937,1.70029527,2081.2,2080.7,4.80602732]
[1773358450938,0.49905909,2081.0,2080.6,1.20255753]
[1773358451455,0.49905909,2081.0,2080.7,1.74]
[1773358452139,0.49905909,2081.0,2080.8,0.001]
[1773358452539,0.50105909,2081.0,2080.8,0.001]
[1773358454068,0.002,2081.0,2080.8,0.45572082]
[1773358456537,0.002,2081.0,2080.9,0.45472082]
[1773358457375,0.002,2081.0,2080.9,0.46676824]
[1773358457586,0.50105909,2081.0,2080.8,0.001]
[1773358457735,0.50105909,2081.0,2080.7,0.45472082]
[1773358457736,0.50105909,2081.0,2080.7,1.742]
[1773358458948,0.50105909,2081.0,2080.6,1.65726815]
[1773358459247,0.50105909,2081.0,2080.6,2.19772082]
[1773358459248,0.49905909,2080.9,2080.6,2.19772082]
[1773358460474,0.49905909,2080.9,2080.6,1.65728896]
[1773358460669,0.48656074,2081.0,2080.6,3.39928896]
[1773358461099,1.68790928,2081.0,2080.6,3.39928896]
[1773358461245,1.68790928,2081.0,2080.6,3.39929632]
[1773358461570,1.68790928,2081.0,2080.6,3.399293]
[1773358461765,1.68790928,2081.0,2080.7,0.45311451]
[1773358461766,0.48656074,2081.0,2080.7,0.45311451]
[1773358462561,0.48456074,2080.9,2080.7,1.743]
[1773358463241,0.48456074,2080.9,2080.6,1.65568747]
[1773358463478,0.48456074,2080.9,2080.6,3.39868747]
[1773358464577,0.002,2081.0,2080.6,3.39868747]
[1773358464988,0.48656074,2081.0,2080.6,3.39868747]
[1773358465866,0.48656074,2081.0,2080.6,1.65568747]
[1773358466070,0.48656074,2081.0,2080.8,0.001]
[1773358469587,0.002,2081.0,2080.8,0.45411451]
[1773358470992,0.48656074,2081.0,2080.8,0.001]
[1773358471293,0.48656074,2081.0,2080.7,1.745]
[1773358472577,1.68792937,2081.0,2080.7,1.745]
[1773358472964,0.48456074,2080.9,2080.6,0.001]
[1773358473779,0.48456074,2080.9,2080.6,1.65568424]
[1773358474691,2.23026084,2081.0,2080.7,0.45311451]
[1773358474692,0.002,2081.0,2080.7,0.45311451]
[1773358474864,0.48656074,2081.0,2080.7,0.45311451]
[1773358475973,0.48656074,2081.0,2080.7,2.19811451]
[1773358476578,0.48656074,2081.0,2080.8,1.20146097]
[1773358478400,0.002,2081.0,2080.8,0.45311451]
[1773358478698,0.002,2081.0,2080.9,0.45411451]
[1773358479600,0.002,2081.0,2080.9,0.001]
[1773358479798,0.002,2081.0,2080.8,0.45311451]
[1773358479998,0.48656074,2081.0,2080.7,2.94747177]
[1773358482787,0.48656074,2081.0,2080.7,1.747]
[1773358482972,0.48656074,2081.0,2080.6,1.65564387]
[1773358482973,1.51347331,2081.0,2080.6,1.65564387]
[1773358483174,1.51347331,2081.0,2080.3,3.42386452]
[1773358483175,0.48456074,2080.7,2080.3,3.42386452]
[1773358483407,0.48456074,2080.7,2080.4,0.47416481]
[1773358484204,0.48456074,2080.7,2080.5,1.20163422]
[1773358487305,0.48456074,2080.7,2080.4,1.67580876]
[1773358491095,0.48456074,2080.7,2080.6,0.001]
[1773358491286,0.48456074,2080.7,2080.4,1.67580876]
[1773358491694,0.48456074,2080.7,2080.4,1.67680876]
[1773358492107,0.48456074,2080.7,2080.4,0.001]
[1773358492302,0.48456074,2080.7,2080.4,1.75]
[1773358492807,0.48456074,2080.7,2080.4,2.95168215]
[1773358493112,2.71430558,2080.8,2080.5,0.47571108]
[1773358493313,0.4838917,2080.7,2080.4,2.95168215]
[1773358494503,1.68541838,2080.7,2080.4,1.751]
[1773358494706,1.02691257,2080.6,2080.3,3.42844862]
[1773358495189,0.4838917,2080.7,2080.3,3.42844862]
[1773358496215,1.68543298,2080.7,2080.3,3.42944862]
[1773358496925,1.68543298,2080.7,2080.1,2.48550482]
[1773358496926,0.4838917,2080.5,2080.1,0.47671108]
[1773358497794,0.4838917,2080.4,2080.1,0.47671108]
[1773358498125,2.22918314,2080.5,2080.1,0.001]
[1773358498126,0.4838917,2080.2,2080.1,0.001]
[1773358498327,0.4838917,2080.2,2079.9,0.001]
[1773358499388,0.4838917,2080.4,2080.0,0.47571108]
[1773358500292,0.4838917,2080.4,2080.0,1.6775865]
[1773358500492,0.4838917,2080.4,2079.9,4.80881252]
[1773358500493,0.92470718,2080.1,2079.9,0.001]
[1773358500719,0.4838917,2080.2,2079.9,1.20297962]
[1773358501094,1.68541041,2080.7,2080.0,0.47571108]
[1773358501294,2.61206167,2080.8,2080.0,0.47571108]
[1773358501494,0.4838917,2080.7,2080.0,0.47571108]
[1773358503837,1.68543197,2080.7,2080.3,0.47571108]
[1773358504333,0.002,2080.5,2080.3,0.47571108]
[1773358505208,0.002,2080.5,2080.3,4.31571108]
[1773358508244,0.002,2080.5,2080.4,3.84]
[1773358513341,1.20351888,2080.7,2080.5,0.47571108]
[1773358513342,0.002,2080.7,2080.5,0.47571108]
[1773358513947,0.4858917,2080.7,2080.4,1.20169198]
[1773358514311,0.4858917,2080.7,2080.3,1.67741384]
[1773358515128,0.4858917,2080.7,2080.3,3.43341384]
[1773358516229,0.4858917,2080.7,2080.3,1.67741384]
[1773358516439,0.4858917,2080.7,2080.3,3.43341384]
[1773358517343,0.002,2080.5,2080.3,3.43341384]
[1773358519151,0.002,2080.5,2080.3,3.43445226]
[1773358520251,0.002,2080.5,2080.4,3.84]
[1773358521524,0.48989676,2080.5,2080.4,3.84]
[1773358521850,0.48989676,2080.5,2080.4,5.52630918]
[1773358521851,0.002,2080.5,2080.4,5.52630918]
[1773358522543,0.002,2080.7,2080.5,0.4846172]
[1773358526150,0.48789676,2080.6,2080.3,1.20171391]
[1773358526545,0.48789676,2080.6,2080.3,1.76]
[1773358527253,0.48789676,2080.6,2080.3,2.2446172]
[1773358527840,1.20356977,2080.7,2080.4,0.4846172]
[1773358528464,0.48789676,2080.6,2080.2,1.762]
[1773358528840,0.48789676,2080.5,2080.2,1.762]
[1773358529039,0.48789676,2080.5,2080.2,3.44841243]
[1773358529868,0.48989676,2080.5,2080.2,3.4484145]
[1773358530074,0.48989676,2080.5,2080.3,0.001]
[1773358535657,0.002,2080.5,2080.3,0.4856172]
[1773358536256,0.002,2080.5,2080.3,0.001]
[1773358537065,0.48989676,2080.5,2080.3,0.001]
[1773358538284,0.48989676,2080.5,2080.3,3.841]
[1773358541373,0.48989676,2080.5,2080.4,3.84]
[1773358542087,0.48789676,2080.4,2080.0,0.001]
[1773358542263,0.48789676,2080.1,2079.6,0.4846172]
[1773358542466,0.48789676,2080.1,2079.5,1.21423344]
[1773358542467,0.48789676,2080.1,2079.5,3.46085064]
[1773358542890,0.48789676,2080.1,2079.5,1.69885064]
[1773358543091,0.48197763,2079.9,2079.5,0.01202223]
[1773358543272,1.68413189,2079.6,2079.5,0.01202223]
[1773358544177,1.68413189,2079.6,2079.2,0.4795364]
[1773358544692,1.68413189,2079.6,2079.0,1.21450046]
[1773358544693,0.48197763,2079.5,2079.0,1.21450046]
[1773358544990,0.48197763,2079.5,2079.1,0.4795364]
[1773358545361,0.48197763,2079.5,2079.2,0.4795364]
[1773358546980,0.48197763,2079.5,2079.1,1.68194715]
[1773358547589,0.48197763,2079.5,2079.1,3.44494715]
[1773358548180,0.48197763,2079.5,2079.1,1.68194715]
[1773358548403,0.48197763,2079.5,2079.2,0.4795364]
[1773358551693,0.48197763,2079.5,2079.1,1.20241075]
[1773358552086,0.48692864,2079.8,2079.2,0.46459611]
[1773358552283,0.49895087,2080.0,2079.2,0.46459611]
[1773358552807,0.49895087,2080.0,2079.3,0.46459611]
[1773358552994,0.01202223,2080.0,2079.3,0.46459611]
[1773358553998,0.01202223,2080.0,2079.5,0.46459611]
[1773358554200,0.01202223,2080.0,2079.7,0.46459611]
[1773358554384,0.48692864,2079.9,2079.5,6.06859611]
[1773358555406,0.48692864,2079.9,2079.5,2.22859611]
[1773358555788,0.48692864,2079.9,2079.6,0.46459611]
[1773358556104,0.49895087,2080.0,2079.7,1.66669256]
[1773358557104,0.002,2079.8,2079.7,1.66669256]
[1773358557285,0.49895087,2080.0,2079.7,1.66669256]
[1773358557894,0.49895087,2080.0,2079.7,2.96709645]
[1773358558202,0.49895087,2080.0,2079.7,1.20209645]
[1773358558410,0.49895087,2080.0,2079.7,1.765]
[1773358558596,0.49895087,2080.0,2079.7,2.96709062]
[1773358559002,0.49895087,2080.0,2079.7,3.43168673]
[1773358559186,0.49895087,2080.0,2079.7,2.96709062]
[1773358560008,0.49895087,2080.0,2079.7,3.43168673]
[1773358560207,0.49895087,2080.0,2079.7,1.66668673]
[1773358560380,0.49895087,2080.0,2079.7,3.43168673]
[1773358561011,0.01202223,2080.0,2079.8,0.46459611]
[1773358562206,0.49895087,2080.0,2079.7,2.96709062]
[1773358562400,0.49895087,2080.0,2079.7,3.43168673]
[1773358562987,0.01202223,2080.0,2079.8,0.46459611]
[1773358563193,0.49895087,2080.0,2079.7,1.20209062]
[1773358563399,0.49895087,2080.0,2079.7,2.96709062]
[1773358563709,0.49895087,2080.0,2079.7,1.20209062]
[1773358563930,0.49895087,2080.0,2079.7,2.96809062]
[1773358565188,0.49895087,2080.0,2079.7,1.20209062]
[1773358565389,0.49895087,2080.0,2079.7,2.96809062]
[1773358568290,0.49895087,2080.0,2079.7,2.96909062]
[1773358568818,0.01202223,2080.0,2079.8,0.46459611]
[1773358569321,0.01202223,2080.0,2079.9,0.001]
[1773358570114,0.01402223,2080.0,2079.9,0.001]
[1773358575998,0.50095087,2080.0,2079.9,0.001]
[1773358577493,0.50095087,2080.0,2079.8,1.20203248]
[1773358577697,0.50095087,2080.0,2079.7,1.20207388]
[1773358579916,0.01402223,2080.0,2079.8,0.46459611]
[1773358581330,0.01402223,2080.0,2079.9,1.20198086]
[1773358582432,0.48386015,2080.3,2080.0,0.48509996]
[1773358583817,0.48386015,2080.3,2079.9,0.48509996]
[1773358584131,0.48186015,2080.2,2080.0,0.001]
[1773358589440,1.68561067,2080.3,2080.0,0.48609996]
[1773358590834,1.68561067,2080.3,2080.0,0.001]
[1773358591038,0.48186015,2080.2,2080.0,0.001]
[1773358598243,0.48386015,2080.2,2080.0,0.001]
[1773358598444,0.48186015,2080.1,2080.0,0.001]
[1773358598646,0.002,2080.2,2080.0,0.001]
[1773358598945,0.48386015,2080.2,2080.0,0.001]
[1773358610360,0.002,2080.2,2080.0,0.49728969]
[1773358610866,0.002,2080.5,2080.1,0.4887047]
[1773358611931,0.48216811,2080.5,2080.1,0.4887047]
[1773358612345,0.48216811,2080.5,2080.2,1.69051221]
[1773358613754,0.002,2080.5,2080.3,0.4887047]
[1773358614162,0.002,2080.5,2080.1,1.20181737]
[1773358614163,0.48016811,2080.4,2080.1,1.20181737]
[1773358614734,0.48016811,2080.3,2080.0,1.69159359]
[1773358614955,0.48016811,2080.3,2080.0,1.20288889]
[1773358615874,0.48016811,2080.3,2080.0,1.69159359]
[1773358616250,1.6838419,2080.5,2080.1,0.4887047]
[1773358616451,0.48216811,2080.5,2080.1,0.4887047]
[1773358619184,0.48216811,2080.5,2080.2,1.20180751]
[1773358619679,0.48216811,2080.5,2080.1,1.69052421]
[1773358621579,0.48216811,2080.5,2080.1,1.20181951]
[1773358621782,0.48016811,2080.4,2080.0,1.20288554]
[1773358623188,0.48016811,2080.4,2080.2,0.001]
[1773358623481,0.002,2080.3,2080.2,0.001]
[1773358623681,1.68368981,2080.7,2080.3,0.4887047]
[1773358624582,0.48016811,2080.6,2080.3,0.4887047]
[1773358626089,0.48016811,2080.6,2080.3,1.69045421]
[1773358627582,0.002,2080.7,2080.4,0.4887047]
[1773358628388,0.48216811,2080.7,2080.4,0.4887047]
[1773358628689,0.48216811,2080.7,2080.3,1.69045421]
[1773358630191,1.68369481,2080.7,2080.3,1.69045421]
[1773358630570,0.48216811,2080.7,2080.3,1.69045421]
[1773358630777,1.68369917,2080.7,2080.3,1.69045421]
[1773358633276,1.20353106,2080.7,2080.4,0.4887047]
[1773358633488,0.002,2080.7,2080.4,0.4887047]
[1773358635500,0.002,2080.5,2080.4,0.4887047]
[1773358636704,0.002,2080.5,2080.3,1.20174951]
[1773358637077,0.002,2080.5,2080.3,1.69045421]
[1773358637879,0.48016811,2080.4,2080.0,1.69160188]
[1773358638568,0.48016811,2080.4,2080.1,0.4887047]
[1773358639390,0.002,2080.5,2080.1,0.4887047]
[1773358639873,0.002,2080.5,2080.3,1.69042814]
[1773358640594,0.002,2080.5,2080.3,0.4887047]
[1773358641395,0.46622897,2080.5,2080.0,0.001]
[1773358641596,0.46422897,2080.4,2080.0,1.68953181]
[1773358642105,0.46422897,2080.3,2080.0,1.68953181]
[1773358644304,0.46422897,2080.2,2080.0,0.001]
[1773358646191,0.46422897,2080.1,2079.8,0.001]
[1773358646706,0.46422897,2080.0,2079.7,0.001]
[1773358648310,0.46422897,2079.9,2079.7,0.001]
[1773358650284,1.66621686,2079.9,2079.7,0.001]
[1773358650886,0.46422897,2079.9,2079.7,0.001]
[1773358652510,0.46422897,2079.8,2079.5,0.01302223]
[1773358653098,0.46422897,2079.8,2079.4,0.001]
[1773358654400,1.66632542,2079.7,2079.4,0.001]
[1773358656133,0.46422897,2079.7,2079.4,0.001]
[1773358657111,1.66633471,2079.7,2079.4,0.001]
[1773358658129,0.46422897,2079.7,2079.4,0.48761366]
[1773358658330,0.46422897,2079.6,2079.4,0.001]
[1773358659034,0.46422897,2079.8,2079.4,0.001]
[1773358660532,0.46422897,2079.8,2079.6,0.001]
[1773358661109,0.46622897,2079.8,2079.6,0.001]
[1773358661409,1.66632542,2079.7,2079.6,0.001]
[1773358673913,0.45533732,2079.6,2079.2,0.46210308]
[1773358674241,0.45533732,2079.6,2079.2,0.51118564]
[1773358675139,0.45533732,2079.4,2079.2,0.001]
[1773358676209,0.45533732,2079.4,2079.1,1.2034396]
[1773358676210,0.45533732,2079.4,2079.1,1.2034379]
[1773358679147,1.65753906,2079.6,2079.2,0.46210308]